fUSD/lending_fUSD_20240425
["ID","MTS","AMOUNT","RATE_DAILY","PERIOD"]
[323500442,1714054259426,-500.0,0.00012441,2]
[323500443,1714054259436,-235.31,0.00012441,2]
[323500444,1714054259445,-500.0,0.00012441,2]
[323500445,1714054259454,-500.0,0.00012441,2]
[323500446,1714054259464,-500.0,0.00012441,2]
[323500447,1714054259473,-500.0,0.00012441,2]
[323500448,1714054259483,-500.0,0.00012441,2]
[323500449,1714054259492,-500.0,0.00012441,2]
[323500450,1714054259501,-485.57601648,0.00012441,2]
[323500451,1714054259511,-500.0,0.00012441,2]
[323500452,1714054259520,-500.0,0.00012441,2]
[323500453,1714054259529,-500.0,0.00012441,2]
[323500454,1714054259541,-500.0,0.00012441,2]
[323500455,1714054259550,-500.0,0.00012441,2]
[323500456,1714054259559,-500.0,0.00012441,2]
[323500457,1714054259569,-500.0,0.00012441,2]
[323500458,1714054259578,-500.0,0.00012441,2]
[323500459,1714054259587,-500.0,0.00012441,2]
[323500460,1714054259597,-500.0,0.00012441,2]
[323500461,1714054259606,-500.0,0.00012441,2]
[323500462,1714054259615,-500.0,0.00012441,2]
[323500463,1714054259624,-500.0,0.00012441,2]
[323500464,1714054259633,-500.0,0.00012441,2]
[323500465,1714054259642,-500.0,0.00012441,2]
[323500466,1714054259651,-500.0,0.00012441,2]
[323500467,1714054259660,-500.0,0.00012441,2]
[323500468,1714054259669,-500.0,0.00012441,2]
[323500469,1714054259679,-500.0,0.00012441,2]
[323500470,1714054259688,-500.0,0.00012441,2]
[323500471,1714054259697,-500.0,0.00012441,2]
[323500472,1714054259708,-536.94049301,0.00012441,2]
[323500473,1714054259717,-500.0,0.00012441,2]
[323500474,1714054259725,-500.0,0.00012441,2]
[323500475,1714054259734,-326.15,0.00012441,2]
[323500476,1714054259743,-1100.04,0.00012441,2]
[323500477,1714054259753,-500.0,0.00012441,2]
[323500478,1714054259762,-500.0,0.00012441,2]
[323500479,1714054259771,-500.0,0.00012441,2]
[323500480,1714054259780,-500.0,0.00012441,2]
[323500481,1714054259791,-500.0,0.00012441,2]
[323500482,1714054259801,-500.0,0.00012441,2]
[323500483,1714054259810,-500.0,0.00012441,2]
[323500484,1714054259819,-641.76,0.00012441,2]
[323500485,1714054259828,-500.0,0.00012441,2]
[323500486,1714054259838,-403.09,0.00012441,2]
[323500487,1714054259847,-500.0,0.00012441,2]
[323500488,1714054259856,-500.0,0.00012441,2]
[323500489,1714054259866,-3234.15272146,0.00012464,2]
[323500490,1714054259875,-150.0,0.00012466,2]
[323500491,1714054259884,-150.0,0.00012466,2]
[323500492,1714054259893,-150.0,0.00012466,2]
[323500493,1714054259903,-150.0,0.00012466,2]
[323500494,1714054259912,-150.0,0.00012466,2]
[323500495,1714054259921,-150.0,0.00012466,2]
[323500496,1714054259930,-150.0,0.00012466,2]
[323500497,1714054259939,-150.0,0.00012466,2]
[323500498,1714054259948,-155.0,0.000125,2]
[323500499,1714054259958,-251.67117492,0.000125,2]
[323500500,1714054259968,-286.95397032,0.000125,2]
[323500501,1714054259978,-708.56640774,0.00012573,2]
[323500502,1714054259987,-3234.15272146,0.00012573,2]
[323500503,1714054259996,-2106.64410572,0.00012573,2]
[323500504,1714054260005,-151.44,0.00012614,2]
[323500505,1714054260014,-500.0,0.00012619,2]
[323500506,1714054260023,-1287.94,0.00012619,2]
[323500507,1714054260032,-2088.51,0.00012619,2]
[323500508,1714054260043,-500.0,0.00012619,2]
[323500509,1714054260053,-500.0,0.00012619,2]
[323500510,1714054260062,-500.0,0.00012619,2]
[323500511,1714054260072,-500.0,0.00012619,2]
[323500512,1714054260082,-2730.54,0.00012619,2]
[323500513,1714054260092,-7290.59,0.00012619,2]
[323500514,1714054260102,-500.0,0.00012619,2]
[323500515,1714054260111,-500.0,0.00012619,2]
[323500516,1714054260120,-500.0,0.00012619,2]
[323500517,1714054260130,-500.0,0.00012619,2]
[323500518,1714054260139,-4413.79,0.00012619,2]
[323500519,1714054260148,-606.64,0.00012619,2]
[323500520,1714054260159,-500.0,0.00012619,2]
[323500521,1714054260168,-599.91,0.00012619,2]
[323500522,1714054260178,-500.0,0.00012619,2]
[323500523,1714054260189,-500.0,0.00012619,2]
[323500524,1714054260198,-500.0,0.00012619,2]
[323500525,1714054260208,-5640.48,0.00012619,2]
[323500526,1714054260217,-3124.68,0.00012619,2]
[323500527,1714054260227,-500.0,0.00012619,2]
[323500528,1714054260237,-500.0,0.00012619,2]
[323500529,1714054260246,-500.0,0.00012619,2]
[323500530,1714054260260,-500.0,0.00012619,2]
[323500531,1714054260269,-641.3,0.00012619,2]
[323500532,1714054260278,-500.0,0.00012619,2]
[323500533,1714054260290,-500.0,0.00012619,2]
[323500534,1714054260299,-500.0,0.00012619,2]
[323500535,1714054260309,-500.0,0.00012619,2]
[323500536,1714054260318,-20357.01,0.00012619,2]
[323500537,1714054260328,-500.0,0.00012619,2]
[323500538,1714054260337,-500.0,0.00012619,2]
[323500539,1714054260346,-1039.38,0.00012619,2]
[323500540,1714054260355,-529.71,0.0001262,2]
[323500541,1714054260364,-500.0,0.0001262,2]
[323500542,1714054260373,-500.0,0.0001262,2]
[323500543,1714054260382,-500.0,0.0001262,2]
[323500544,1714054260391,-500.0,0.0001262,2]
[323500545,1714054260400,-500.0,0.0001262,2]
[323500546,1714054260410,-500.0,0.0001262,2]
[323500547,1714054260419,-500.0,0.0001262,2]
[323500548,1714054260429,-500.0,0.0001262,2]
[323500549,1714054260438,-500.0,0.0001262,2]
[323500550,1714054260447,-500.0,0.0001262,2]
[323500551,1714054260456,-500.0,0.0001262,2]
[323500552,1714054260465,-500.0,0.0001262,2]
[323500553,1714054260475,-500.0,0.0001262,2]
[323500554,1714054260484,-500.0,0.0001262,2]
[323500555,1714054260493,-500.0,0.0001262,2]
[323500556,1714054260502,-821.74,0.0001262,2]
[323500557,1714054260511,-608.02,0.0001262,2]
[323500558,1714054260521,-500.0,0.0001262,2]
[323500559,1714054260530,-500.0,0.0001262,2]
[323500560,1714054260544,-500.0,0.0001262,2]
[323500561,1714054260554,-500.0,0.0001262,2]
[323500562,1714054260563,-1652.88,0.0001262,2]
[323500563,1714054260572,-500.0,0.0001262,2]
[323500564,1714054260582,-500.0,0.0001262,2]
[323500565,1714054260591,-500.0,0.0001262,2]
[323500566,1714054260601,-500.0,0.0001262,2]
[323500567,1714054260610,-500.0,0.0001262,2]
[323500568,1714054260619,-500.0,0.0001262,2]
[323500569,1714054260628,-536.63,0.0001262,2]
[323500570,1714054260637,-574.2,0.0001262,2]
[323500571,1714054260646,-1098.72,0.0001262,2]
[323500572,1714054260655,-1934.75,0.0001262,2]
[323500573,1714054260664,-500.0,0.0001262,2]
[323500574,1714054260674,-500.0,0.0001262,2]
[323500575,1714054260683,-500.0,0.0001262,2]
[323500576,1714054260692,-500.0,0.0001262,2]
[323500577,1714054260701,-500.0,0.0001262,2]
[323500578,1714054260710,-2088.1,0.0001262,2]
[323500579,1714054260719,-4195.06,0.0001262,2]
[323500580,1714054260729,-500.0,0.0001262,2]
[323500581,1714054260737,-3553.68,0.0001262,2]
[323500582,1714054260746,-1120.16,0.0001262,2]
[323500583,1714054260755,-514.1,0.0001262,2]
[323500584,1714054260764,-500.0,0.0001262,2]
[323500585,1714054260773,-500.0,0.0001262,2]
[323500586,1714054260782,-1166.64,0.0001262,2]
[323500587,1714054260791,-536.18,0.0001262,2]
[323500588,1714054260800,-748.81,0.0001262,2]
[323500589,1714054260810,-500.0,0.0001262,2]
[323500590,1714054260819,-500.0,0.0001262,2]
[323500591,1714054260828,-500.0,0.0001262,2]
[323500592,1714054260838,-500.0,0.0001262,2]
[323500593,1714054260848,-500.0,0.0001262,2]
[323500594,1714054260858,-1957.1,0.0001262,2]
[323500595,1714054260867,-500.0,0.0001262,2]
[323500596,1714054260876,-2605.31,0.0001262,2]
[323500597,1714054260885,-2201.54,0.0001262,2]
[323500598,1714054260894,-500.0,0.0001262,2]
[323500599,1714054260903,-500.0,0.0001262,2]
[323500600,1714054260913,-1508.76,0.0001262,2]
[323500601,1714054260922,-903.56,0.0001262,2]
[323500602,1714054260931,-500.0,0.0001262,2]
[323500603,1714054260940,-1986.12,0.0001262,2]
[323500604,1714054260949,-2885.89,0.0001262,2]
[323500605,1714054260958,-500.0,0.0001262,2]
[323500606,1714054260967,-500.0,0.0001262,2]
[323500607,1714054260976,-500.0,0.0001262,2]
[323500608,1714054260985,-500.0,0.0001262,2]
[323500609,1714054260995,-5282.07,0.0001262,2]
[323500610,1714054261004,-500.0,0.0001262,2]
[323500611,1714054261014,-500.0,0.0001262,2]
[323500612,1714054261023,-500.0,0.0001262,2]
[323500613,1714054261032,-500.0,0.0001262,2]
[323500614,1714054261050,-500.0,0.0001262,2]
[323500615,1714054261059,-1423.3,0.0001262,2]
[323500616,1714054261069,-536.62,0.0001262,2]
[323500617,1714054261078,-611.38,0.0001262,2]
[323500618,1714054261088,-500.0,0.0001262,2]
[323500619,1714054261098,-1554.1,0.0001262,2]
[323500620,1714054261107,-500.0,0.0001262,2]
[323500621,1714054261116,-548.06,0.0001262,2]
[323500622,1714054261126,-500.0,0.0001262,2]
[323500623,1714054261135,-500.0,0.0001262,2]
[323500624,1714054261144,-757.69,0.0001262,2]
[323500625,1714054261153,-500.0,0.0001262,2]
[323500626,1714054261162,-1979.9,0.0001262,2]
[323500627,1714054261171,-765.51,0.0001262,2]
[323500628,1714054261180,-14160.27,0.0001262,2]
[323500629,1714054261189,-541.74,0.0001262,2]
[323500630,1714054261199,-587.8,0.0001262,2]
[323500631,1714054261208,-500.0,0.0001262,2]
[323500632,1714054261217,-500.0,0.0001262,2]
[323500633,1714054261226,-670.59,0.0001262,2]
[323500634,1714054261236,-705.45,0.0001262,2]
[323500635,1714054261245,-733.24,0.0001262,2]
[323500636,1714054261254,-500.0,0.0001262,2]
[323500637,1714054261264,-2062.6,0.0001262,2]
[323500638,1714054261276,-500.0,0.0001262,2]
[323500639,1714054261285,-500.0,0.0001262,2]
[323500640,1714054261297,-478.51,0.0001262,2]
[323500641,1714054261306,-683.56,0.0001262,2]
[323500642,1714054261316,-26000.44,0.0001262,2]
[323500643,1714054261325,-500.0,0.00012621,2]
[323500644,1714054261335,-500.0,0.00012621,2]
[323500645,1714054261345,-500.0,0.00012621,2]
[323500646,1714054261354,-317.08,0.00012621,2]
[323500647,1714054261364,-500.0,0.00012621,2]
[323500648,1714054261374,-500.99,0.00012621,2]
[323500649,1714054261383,-500.0,0.00012621,2]
[323500650,1714054261393,-500.0,0.00012621,2]
[323500651,1714054261402,-500.0,0.00012621,2]
[323500652,1714054261411,-183.2,0.00012621,2]
[323500653,1714054261420,-500.0,0.00012621,2]
[323500654,1714054261429,-500.0,0.00012621,2]
[323500655,1714054261440,-308.14,0.00012621,2]
[323500656,1714054261449,-500.0,0.00012621,2]
[323500657,1714054261458,-500.0,0.00012621,2]
[323500658,1714054261467,-500.0,0.00012621,2]
[323500659,1714054261476,-500.0,0.00012621,2]
[323500660,1714054261485,-500.0,0.00012621,2]
[323500661,1714054261494,-500.0,0.00012621,2]
[323500662,1714054261504,-208.05565723,0.00012621,2]
[323500663,1714054261513,-500.0,0.00012621,2]
[323500664,1714054261522,-500.0,0.00012621,2]
[323500665,1714054261531,-500.0,0.00012621,2]
[323500666,1714054261542,-500.0,0.00012621,2]
[323500667,1714054261551,-500.0,0.00012621,2]
[323500668,1714054261561,-441.79208861,0.00012621,2]
[323500669,1714054261570,-500.0,0.00012621,2]
[323500670,1714054261579,-500.0,0.00012621,2]
[323500671,1714054261588,-500.0,0.00012621,2]
[323500672,1714054261771,-500.0,0.00012621,2]
[323500673,1714054261781,-500.0,0.00012621,2]
[323500674,1714054261793,-611.81012403,0.00012621,2]
[323500675,1714054261803,-500.0,0.00012621,2]
[323500676,1714054261814,-500.0,0.00012621,2]
[323500677,1714054261823,-500.0,0.00012621,2]
[323500678,1714054261832,-500.0,0.00012621,2]
[323500679,1714054261841,-500.0,0.00012621,2]
[323500680,1714054261852,-560.7,0.00012621,2]
[323500681,1714054261862,-500.0,0.00012621,2]
[323500682,1714054261872,-597.53406326,0.00012621,2]
[323500683,1714054261881,-500.0,0.00012621,2]
[323500684,1714054261891,-500.0,0.00012621,2]
[323500685,1714054261901,-500.0,0.00012621,2]
[323500686,1714054261910,-500.0,0.00012621,2]
[323500687,1714054261919,-500.0,0.00012621,2]
[323500688,1714054261929,-500.0,0.00012621,2]
[323500689,1714054261939,-500.0,0.00012621,2]
[323500690,1714054261949,-762.56,0.00012621,2]
[323500691,1714054261959,-500.0,0.00012621,2]
[323500692,1714054261968,-500.0,0.00012621,2]
[323500693,1714054261978,-500.0,0.00012621,2]
[323500694,1714054261987,-500.0,0.00012621,2]
[323500695,1714054261996,-500.0,0.00012621,2]
[323500696,1714054262006,-500.0,0.00012621,2]
[323500697,1714054262015,-150.0,0.00012621,2]
[323500698,1714054262024,-500.0,0.00012621,2]
[323500699,1714054262033,-500.0,0.00012621,2]
[323500700,1714054262047,-500.0,0.00012621,2]
[323500701,1714054262057,-500.0,0.00012621,2]
[323500702,1714054262068,-500.0,0.00012621,2]
[323500703,1714054262077,-500.0,0.00012621,2]
[323500704,1714054262086,-500.0,0.00012621,2]
[323500705,1714054262097,-500.0,0.00012621,2]
[323500706,1714054262106,-500.0,0.00012621,2]
[323500707,1714054262116,-500.0,0.00012621,2]
[323500708,1714054262127,-500.0,0.00012621,2]
[323500709,1714054262139,-500.0,0.00012621,2]
[323500710,1714054262151,-500.0,0.00012621,2]
[323500711,1714054262162,-500.0,0.00012621,2]
[323500712,1714054262171,-500.0,0.00012621,2]
[323500713,1714054262180,-500.0,0.00012621,2]
[323500714,1714054262190,-500.0,0.00012621,2]
[323500715,1714054262199,-500.0,0.00012621,2]
[323500716,1714054262208,-500.0,0.00012621,2]
[323500717,1714054262217,-500.0,0.00012621,2]
[323500718,1714054262226,-500.0,0.00012621,2]
[323500719,1714054262235,-496.07655969,0.00012621,2]
[323500720,1714054262255,-3.92344031,0.00012621,2]
[323500721,1714054262265,-500.0,0.00012621,2]
[323500722,1714054262274,-500.0,0.00012621,2]
[323500723,1714054262283,-500.0,0.00012621,2]
[323500724,1714054262297,-540.58,0.00012621,2]
[323500725,1714054262305,-500.0,0.00012621,2]
[323500726,1714054262315,-500.0,0.00012621,2]
[323500727,1714054262324,-500.0,0.00012621,2]
[323500728,1714054262333,-500.0,0.00012621,2]
[323500729,1714054262343,-500.0,0.00012621,2]
[323500730,1714054262353,-500.0,0.00012621,2]
[323500731,1714054262362,-500.0,0.00012621,2]
[323500732,1714054262371,-500.0,0.00012621,2]
[323500733,1714054262381,-500.0,0.00012621,2]
[323500734,1714054262390,-5534.93,0.00012621,2]
[323500735,1714054262400,-500.0,0.00012621,2]
[323500736,1714054262411,-1961.29,0.00012621,2]
[323500737,1714054262421,-500.0,0.00012621,2]
[323500738,1714054262431,-682.03,0.00012621,2]
[323500739,1714054262440,-500.0,0.00012621,2]
[323500740,1714054262449,-500.0,0.00012621,2]
[323500741,1714054262458,-504.14,0.00012621,2]
[323500742,1714054262468,-500.0,0.00012621,2]
[323500743,1714054262478,-500.0,0.00012621,2]
[323500744,1714054262488,-500.0,0.00012621,2]
[323500745,1714054262497,-500.0,0.00012621,2]
[323500746,1714054262507,-500.0,0.00012621,2]
[323500747,1714054262516,-500.0,0.00012621,2]
[323500748,1714054262526,-500.0,0.00012621,2]
[323500749,1714054262536,-500.0,0.00012621,2]
[323500750,1714054262548,-500.0,0.00012621,2]
[323500751,1714054262558,-2108.43,0.00012621,2]
[323500752,1714054262567,-500.0,0.00012621,2]
[323500753,1714054262577,-500.0,0.00012621,2]
[323500754,1714054262587,-500.0,0.00012621,2]
[323500755,1714054262596,-500.0,0.00012621,2]
[323500756,1714054262606,-500.0,0.00012621,2]
[323500757,1714054262616,-500.0,0.00012621,2]
[323500758,1714054262625,-500.0,0.00012621,2]
[323500759,1714054262635,-500.0,0.00012621,2]
[323500760,1714054262645,-500.0,0.00012621,2]
[323500761,1714054262655,-500.0,0.00012621,2]
[323500762,1714054262665,-500.0,0.00012621,2]
[323500763,1714054262674,-500.0,0.00012621,2]
[323500764,1714054262684,-6062.52,0.00012621,2]
[323500765,1714054262693,-500.0,0.00012621,2]
[323500766,1714054262703,-1432.87,0.00012621,2]
[323500767,1714054262713,-500.0,0.00012621,2]
[323500768,1714054262722,-500.0,0.00012621,2]
[323500769,1714054262732,-500.0,0.00012621,2]
[323500770,1714054262741,-500.0,0.00012621,2]
[323500771,1714054262750,-500.0,0.00012621,2]
[323500772,1714054262759,-500.0,0.00012621,2]
[323500773,1714054262769,-500.0,0.00012621,2]
[323500774,1714054262779,-500.0,0.00012621,2]
[323500775,1714054262790,-500.0,0.00012621,2]
[323500776,1714054262800,-3641.66,0.00012621,2]
[323500777,1714054262809,-500.0,0.00012621,2]
[323500778,1714054262819,-500.0,0.00012621,2]
[323500779,1714054262829,-500.0,0.00012621,2]
[323500780,1714054262838,-500.0,0.00012621,2]
[323500781,1714054262848,-500.0,0.00012621,2]
[323500782,1714054262858,-500.0,0.00012621,2]
[323500783,1714054262868,-500.0,0.00012621,2]
[323500784,1714054262878,-879.17,0.00012621,2]
[323500785,1714054262887,-564.99,0.00012621,2]
[323500786,1714054262896,-500.0,0.00012621,2]
[323500787,1714054262905,-500.0,0.00012621,2]
[323500788,1714054262914,-616.24,0.00012621,2]
[323500789,1714054262925,-500.0,0.00012621,2]
[323500790,1714054262935,-500.0,0.00012621,2]
[323500791,1714054262944,-500.0,0.00012621,2]
[323500792,1714054262953,-501.17465618,0.00012621,2]
[323500793,1714054262965,-392.29490377,0.00012621,2]
[323500794,1714054263521,-241.922014,0.000117,2]
[323500795,1714054263530,-396.15728454,0.00011798,2]
[323500796,1714054263589,-663.36438,0.00011798,2]
[323500797,1714054263601,-782.40008352,0.00011798,2]
[323500798,1714054263613,-1569.35,0.00011798,2]
[323500799,1714054263624,-1593.125,0.00011798,2]
[323500800,1714054263648,-1555.83549821,0.00011798,2]
[323500801,1714054263657,-282.71044005,0.00012621,2]
[323500802,1714054263667,-150.0,0.00012633,2]
[323500803,1714054263676,-150.0,0.00012637,2]
[323500804,1714054263685,-150.0,0.00012649,2]
[323500805,1714054263695,-150.0,0.00012652,2]
[323500806,1714054263704,-150.0,0.00012655,2]
[323500807,1714054263713,-150.0,0.00012658,2]
[323500808,1714054263722,-150.0,0.00012658,2]
[323500809,1714054263732,-150.0,0.00012673,2]
[323500810,1714054263741,-150.0,0.00012679,2]
[323500811,1714054263750,-3234.15272146,0.00012682,2]
[323500812,1714054263760,-150.0,0.00012682,2]
[323500813,1714054263769,-150.0,0.00012685,2]
[323500814,1714054263778,-150.0,0.0001269,2]
[323500815,1714054263787,-150.0,0.00012691,2]
[323500816,1714054263800,-21660.28144469,0.00012697,2]
[323500817,1714054263810,-150.0,0.000127,2]
[323500818,1714054263819,-1000.0,0.000127,2]
[323500819,1714054263829,-150.0,0.00012705,2]
[323500820,1714054263839,-150.0,0.00012707,2]
[323500821,1714054263848,-602.77,0.00012708,2]
[323500822,1714054263858,-133.81286938,0.00012715,2]
[323500823,1714054263870,-366.18713062,0.00012715,2]
[323500824,1714054263881,-500.0,0.00012715,2]
[323500825,1714054263890,-500.0,0.00012715,2]
[323500826,1714054263900,-500.0,0.00012715,2]
[323500827,1714054263910,-500.0,0.00012715,2]
[323500828,1714054263919,-500.0,0.00012715,2]
[323500829,1714054263929,-230.6000826,0.00012715,2]
[323500830,1714054263939,-500.0,0.00012715,2]
[323500831,1714054263948,-500.0,0.00012715,2]
[323500832,1714054263958,-500.0,0.00012715,2]
[323500833,1714054263967,-500.0,0.00012715,2]
[323500834,1714054263977,-678.96,0.00012715,2]
[323500835,1714054263988,-500.0,0.00012715,2]
[323500836,1714054263997,-500.0,0.00012715,2]
[323500837,1714054264007,-500.0,0.00012715,2]
[323500838,1714054264016,-599.18,0.00012715,2]
[323500839,1714054264026,-582.44022733,0.00012715,2]
[323500840,1714054264035,-500.0,0.00012715,2]
[323500841,1714054264047,-500.0,0.00012715,2]
[323500842,1714054264057,-500.0,0.00012715,2]
[323500843,1714054264066,-500.0,0.00012715,2]
[323500844,1714054264076,-500.0,0.00012715,2]
[323500845,1714054264085,-439.83,0.00012715,2]
[323500846,1714054264095,-500.0,0.00012715,2]
[323500847,1714054264107,-555.1,0.00012715,2]
[323500848,1714054264116,-500.0,0.00012715,2]
[323500849,1714054264125,-500.0,0.00012715,2]
[323500850,1714054264136,-500.0,0.00012715,2]
[323500851,1714054264146,-561.35,0.00012715,2]
[323500852,1714054264155,-622.24,0.00012715,2]
[323500853,1714054264165,-500.0,0.00012715,2]
[323500854,1714054264174,-500.0,0.00012715,2]
[323500855,1714054264184,-500.0,0.00012715,2]
[323500856,1714054264194,-500.0,0.00012715,2]
[323500857,1714054264203,-500.0,0.00012715,2]
[323500858,1714054264213,-500.0,0.00012715,2]
[323500859,1714054264223,-802.76,0.00012715,2]
[323500860,1714054264233,-500.0,0.00012715,2]
[323500861,1714054264242,-500.0,0.00012715,2]
[323500862,1714054264252,-1416.58,0.00012715,2]
[323500863,1714054264261,-500.0,0.00012715,2]
[323500864,1714054264274,-500.0,0.00012715,2]
[323500865,1714054264283,-500.0,0.00012715,2]
[323500866,1714054264295,-500.0,0.00012715,2]
[323500867,1714054264305,-500.0,0.00012715,2]
[323500868,1714054264315,-500.0,0.00012715,2]
[323500869,1714054264324,-500.0,0.00012715,2]
[323500870,1714054264334,-500.0,0.00012715,2]
[323500871,1714054264343,-500.0,0.00012715,2]
[323500872,1714054264352,-500.0,0.00012715,2]
[323500873,1714054264362,-500.0,0.00012715,2]
[323500874,1714054264371,-500.0,0.00012715,2]
[323500875,1714054264381,-500.0,0.00012715,2]
[323500876,1714054264391,-500.0,0.00012715,2]
[323500877,1714054264401,-500.0,0.00012715,2]
[323500878,1714054264410,-634.81,0.00012715,2]
[323500879,1714054264420,-830.7,0.00012715,2]
[323500880,1714054264429,-500.0,0.00012715,2]
[323500881,1714054264439,-500.0,0.00012715,2]
[323500882,1714054264449,-500.0,0.00012715,2]
[323500883,1714054264460,-833.81,0.00012715,2]
[323500884,1714054264470,-500.0,0.00012715,2]
[323500885,1714054264479,-235.35832167,0.00012715,2]
[323500886,1714054264489,-500.0,0.00012715,2]
[323500887,1714054264499,-500.0,0.00012715,2]
[323500888,1714054264508,-500.0,0.00012715,2]
[323500889,1714054264518,-500.0,0.00012715,2]
[323500890,1714054264527,-500.0,0.00012715,2]
[323500891,1714054264537,-631.02138107,0.00012715,2]
[323500892,1714054264550,-500.0,0.00012715,2]
[323500893,1714054264559,-500.0,0.00012715,2]
[323500894,1714054264569,-500.0,0.00012715,2]
[323500895,1714054264578,-500.0,0.00012715,2]
[323500896,1714054264587,-500.0,0.00012715,2]
[323500897,1714054264596,-500.0,0.00012715,2]
[323500898,1714054264605,-500.0,0.00012715,2]
[323500899,1714054264615,-500.0,0.00012715,2]
[323500900,1714054264624,-500.0,0.00012715,2]
[323500901,1714054264633,-500.0,0.00012715,2]
[323500902,1714054264644,-500.0,0.00012715,2]
[323500903,1714054264654,-500.0,0.00012715,2]
[323500904,1714054264664,-500.0,0.00012715,2]
[323500905,1714054264674,-500.0,0.00012715,2]
[323500906,1714054264683,-500.0,0.00012715,2]
[323500907,1714054264876,-500.0,0.00012715,2]
[323500908,1714054264888,-500.0,0.00012715,2]
[323500909,1714054264897,-500.0,0.00012715,2]
[323500910,1714054264906,-500.0,0.00012715,2]
[323500911,1714054264915,-500.0,0.00012715,2]
[323500912,1714054264925,-500.0,0.00012715,2]
[323500913,1714054264934,-500.0,0.00012715,2]
[323500914,1714054264944,-500.0,0.00012715,2]
[323500915,1714054264954,-500.0,0.00012715,2]
[323500916,1714054264964,-500.0,0.00012715,2]
[323500917,1714054264973,-500.0,0.00012715,2]
[323500918,1714054264983,-500.0,0.00012715,2]
[323500919,1714054264992,-500.0,0.00012715,2]
[323500920,1714054265001,-500.0,0.00012715,2]
[323500921,1714054265011,-500.0,0.00012715,2]
[323500922,1714054265020,-500.0,0.00012715,2]
[323500923,1714054265030,-500.0,0.00012715,2]
[323500924,1714054265044,-1100.04,0.00012715,2]
[323500925,1714054265054,-500.0,0.00012715,2]
[323500926,1714054265064,-500.0,0.00012715,2]
[323500927,1714054265075,-500.0,0.00012715,2]
[323500928,1714054265085,-500.0,0.00012715,2]
[323500929,1714054265096,-500.0,0.00012715,2]
[323500930,1714054265107,-500.0,0.00012715,2]
[323500931,1714054265118,-500.0,0.00012715,2]
[323500932,1714054265130,-641.76,0.00012715,2]
[323500933,1714054265142,-500.0,0.00012715,2]
[323500934,1714054265153,-500.0,0.00012715,2]
[323500935,1714054265164,-500.0,0.00012715,2]
[323500936,1714054265175,-587.8,0.00012715,2]
[323500937,1714054265187,-150.0,0.0001272,2]
[323500938,1714054265199,-150.0,0.0001272,2]
[323500939,1714054265209,-150.0,0.00012731,2]
[323500940,1714054265220,-150.0,0.00012732,2]
[323500941,1714054265232,-150.0,0.00012735,2]